fUST/lending_fUST_20240121
["ID","MTS","AMOUNT","RATE_DAILY","PERIOD"]
[312341515,1705801839475,-500.0,0.0003179,2]
[312341516,1705801839486,-788.36,0.0003179,2]
[312341517,1705801839498,-815.58,0.0003179,2]
[312341518,1705801839507,-501.47010298,0.0003179,2]
[312341519,1705801839517,-500.0,0.0003179,2]
[312341520,1705801839527,-500.61111742,0.00031791,2]
[312341521,1705801839537,-500.0,0.00031791,2]
[312341522,1705801839547,-539.51631293,0.00031791,2]
[312341523,1705801839556,-298.05207015,0.00031791,2]
[312341524,1705801839568,-500.0,0.00031791,2]
[312341525,1705801839579,-501.52704151,0.00031791,2]
[312341526,1705801839590,-500.23,0.00031791,2]
[312341527,1705801839601,-1001.23550079,0.00031791,5]
[312341528,1705801839611,-500.0,0.00031791,2]
[312341529,1705801839622,-1597.65,0.00031791,2]
[312341530,1705801839632,-500.0,0.00031791,2]
[312341531,1705801839643,-500.0,0.00031791,2]
[312341532,1705801839653,-633.69735015,0.00031791,2]
[312341533,1705801839663,-300.73816161,0.00031791,2]
[312341534,1705801839675,-500.0,0.00031791,2]
[312341535,1705801839684,-500.0,0.00031791,2]
[312341536,1705801839693,-501.70341618,0.00031791,2]
[312341537,1705801839702,-500.0,0.00031791,2]
[312341538,1705801839712,-1395.06,0.00031791,2]
[312341539,1705801839721,-500.0,0.00031791,2]
[312341540,1705801839734,-759.99,0.00031791,2]
[312341541,1705801839745,-872.99,0.00031791,2]
[312341542,1705801839754,-500.0,0.00031791,2]
[312341543,1705801839763,-500.0,0.00031791,2]
[312341544,1705801839773,-500.0,0.00031791,2]
[312341545,1705801839784,-732.73,0.00031791,2]
[312341546,1705801839794,-2206.2,0.00031791,2]
[312341547,1705801839803,-500.0,0.00031791,2]
[312341548,1705801839815,-2594.57,0.00031791,2]
[312341549,1705801839824,-911.73,0.00031791,2]
[312341550,1705801839835,-500.0,0.00031791,2]
[312341551,1705801839845,-2117.94,0.00031791,2]
[312341552,1705801839855,-500.17407216,0.00031791,2]
[312341553,1705801839866,-500.0,0.00031791,2]
[312341554,1705801839876,-500.0,0.00031791,2]
[312341555,1705801839890,-500.0,0.00031791,2]
[312341556,1705801839899,-500.0,0.00031791,2]
[312341557,1705801839908,-500.0,0.00031791,2]
[312341558,1705801839919,-502.52181998,0.00031791,2]
[312341559,1705801839930,-501.04343767,0.00031791,2]
[312341560,1705801839939,-500.0,0.00031791,2]
[312341561,1705801839949,-500.43124204,0.00031791,2]
[312341562,1705801839958,-1121.58,0.00031791,2]
[312341563,1705801839967,-500.0,0.00031791,2]
[312341564,1705801839976,-500.16510899,0.00031791,2]
[312341565,1705801839985,-1145.72,0.00031791,2]
[312341566,1705801839996,-1398.7,0.00031791,2]
[312341567,1705801840005,-9373.2,0.00031791,2]
[312341568,1705801840015,-500.0,0.00031791,2]
[312341569,1705801840025,-500.0,0.00031791,2]
[312341570,1705801840035,-500.0,0.00031791,2]
[312341571,1705801840045,-3151.85,0.00031791,2]
[312341572,1705801840054,-5973.68,0.00031791,2]
[312341573,1705801840064,-500.0,0.00031791,2]
[312341574,1705801840073,-8537.87,0.00031791,2]
[312341575,1705801840083,-500.0,0.00031791,2]
[312341576,1705801840092,-2191.78,0.00031791,2]
[312341577,1705801840102,-500.0,0.00031791,2]
[312341578,1705801840111,-500.0,0.00031791,2]
[312341579,1705801840120,-1592.5,0.00031791,2]
[312341580,1705801840130,-500.0,0.00031791,2]
[312341581,1705801840139,-500.32272694,0.00031791,2]
[312341582,1705801840149,-565.14670739,0.00031791,2]
[312341583,1705801840158,-500.0,0.00031791,2]
[312341584,1705801840168,-500.0,0.00031791,2]
[312341586,1705801840177,-500.0,0.00031791,2]
[312341587,1705801840186,-500.0,0.00031791,2]
[312341588,1705801840196,-500.0,0.00031791,2]
[312341589,1705801840205,-500.63732243,0.00031791,2]
[312341590,1705801840214,-1774.28,0.00031791,2]
[312341591,1705801840224,-500.0,0.00031791,2]
[312341592,1705801840234,-502.4,0.00031791,2]
[312341593,1705801840246,-500.38009396,0.00031791,2]
[312341594,1705801840255,-506.02688792,0.00031791,2]
[312341595,1705801840265,-530.54853216,0.00031791,2]
[312341596,1705801840274,-500.0,0.00031792,2]
[312341597,1705801840283,-150.0,0.00031792,2]
[312341598,1705801840292,-504.03597928,0.00031792,2]
[312341600,1705801840302,-500.0,0.00031792,2]
[312341602,1705801840311,-671.02,0.00031792,2]
[312341603,1705801840320,-500.0,0.00031792,2]
[312341604,1705801840330,-434.59026681,0.00031792,2]
[312341605,1705801840339,-500.0,0.00031792,2]
[312341606,1705801840348,-500.0,0.00031792,2]
[312341607,1705801840357,-686.45,0.00031792,2]
[312341608,1705801840366,-500.0,0.00031792,2]
[312341609,1705801840376,-500.59997525,0.00031792,2]
[312341610,1705801840385,-335.79645869,0.00031792,2]
[312341611,1705801840394,-500.0,0.00031792,2]
[312341612,1705801840404,-505.49870955,0.00031792,2]
[312341613,1705801840414,-500.0,0.00031792,2]
[312341614,1705801840423,-500.0,0.00031792,2]
[312341615,1705801840432,-503.75336205,0.00031792,2]
[312341616,1705801840442,-379.75033587,0.00031792,2]
[312341617,1705801840453,-517.25030731,0.00031792,2]
[312341618,1705801840462,-500.0,0.00031792,2]
[312341619,1705801840471,-500.0,0.00031792,2]
[312341620,1705801840480,-1000.0,0.00031792,2]
[312341621,1705801840489,-500.0,0.00031792,2]
[312341622,1705801840500,-500.0,0.00031792,2]
[312341623,1705801840510,-500.0,0.00031792,2]
[312341624,1705801840520,-500.0,0.00031792,2]
[312341625,1705801840529,-1119.41,0.00031792,2]
[312341626,1705801840539,-205.72425468,0.00031792,2]
[312341627,1705801840548,-500.0,0.00031792,2]
[312341628,1705801840558,-471.05861413,0.00031792,2]
[312341629,1705801840567,-500.0,0.00031792,2]
[312341630,1705801840576,-478.06891222,0.00031792,2]
[312341631,1705801840587,-611.20432787,0.00031792,2]
[312341632,1705801840597,-500.0,0.00031792,2]
[312341633,1705801840607,-500.0,0.00031792,2]
[312341634,1705801840617,-473.29545084,0.00031792,2]
[312341635,1705801840626,-500.0,0.00031792,2]
[312341636,1705801840637,-847.4,0.00031792,2]
[312341637,1705801840647,-522.09,0.00031792,2]
[312341638,1705801840657,-581.49926245,0.00031792,2]
[312341639,1705801840667,-500.0,0.00031792,2]
[312341640,1705801840676,-415.2839802,0.00031792,2]
[312341641,1705801840686,-506.66714985,0.00031792,2]
[312341642,1705801840696,-500.0,0.00031792,2]
[312341643,1705801840705,-222.05922912,0.00031792,2]
[312341644,1705801840715,-200.0,0.00031792,2]
[312341645,1705801840724,-715.02,0.00031792,2]
[312341646,1705801840733,-500.0,0.00031792,2]
[312341647,1705801840745,-500.0,0.00031792,2]
[312341648,1705801840754,-500.0,0.00031792,2]
[312341649,1705801840763,-647.98810351,0.00031792,2]
[312341650,1705801840772,-545.45949726,0.00031792,2]
[312341651,1705801840782,-520.63,0.00031792,2]
[312341652,1705801840791,-500.0,0.00031793,2]
[312341653,1705801840800,-505.15812508,0.00031793,2]
[312341654,1705801840809,-500.0,0.00031793,2]
[312341655,1705801840818,-500.0,0.00031793,2]
[312341656,1705801840827,-500.0,0.00031793,2]
[312341657,1705801840837,-500.85399954,0.00031793,2]
[312341658,1705801840846,-500.0,0.00031793,2]
[312341659,1705801840856,-503.24194096,0.00031793,2]
[312341660,1705801840867,-501.14364406,0.00031793,2]
[312341661,1705801840877,-500.0,0.00031793,2]
[312341662,1705801840886,-500.0,0.00031793,2]
[312341663,1705801840895,-678.9,0.00031793,2]
[312341664,1705801840904,-559.89524355,0.00031793,2]
[312341665,1705801840915,-684.56,0.00031793,2]
[312341666,1705801840924,-500.0,0.00031793,2]
[312341667,1705801840934,-500.39935536,0.00031793,2]
[312341668,1705801840944,-500.0,0.00031793,2]
[312341669,1705801840954,-502.17254469,0.00031793,2]
[312341670,1705801840964,-500.0,0.00031793,2]
[312341671,1705801840973,-500.0,0.00031793,2]
[312341672,1705801840982,-524.23336477,0.00031793,2]
[312341673,1705801840992,-500.0,0.00031793,7]
[312341674,1705801841001,-545.41,0.00031793,2]
[312341675,1705801841011,-500.42835523,0.00031793,2]
[312341676,1705801841022,-500.0,0.00031793,2]
[312341677,1705801841031,-500.43228834,0.00031793,2]
[312341678,1705801841041,-500.0,0.00031793,2]
[312341679,1705801841051,-500.0,0.00031793,2]
[312341680,1705801841061,-502.67942807,0.00031793,2]
[312341682,1705801841176,-502.90364582,0.00031793,2]
[312341683,1705801841186,-500.67327794,0.00031793,2]
[312341685,1705801841196,-500.0,0.00031793,2]
[312341686,1705801841206,-500.0,0.00031793,2]
[312341688,1705801841215,-502.77146044,0.00031793,2]
[312341689,1705801841224,-500.0,0.00031793,2]
[312341690,1705801841234,-500.0,0.00031793,2]
[312341691,1705801841244,-500.0,0.00031793,2]
[312341692,1705801841253,-500.0,0.00031793,2]
[312341693,1705801841263,-500.0,0.00031793,2]
[312341694,1705801841273,-500.0,0.00031793,2]
[312341695,1705801841282,-521.81338409,0.00031793,2]
[312341696,1705801841292,-523.05,0.00031793,2]
[312341697,1705801841301,-501.75462664,0.00031793,2]
[312341698,1705801841310,-1086.11,0.00031793,2]
[312341699,1705801841320,-298.90422655,0.00031793,2]
[312341700,1705801841330,-220.0,0.00031793,2]
[312341701,1705801841339,-500.0,0.00031793,2]
[312341702,1705801841349,-505.60608591,0.00031793,2]
[312341703,1705801841359,-1000.0,0.00031793,2]
[312341704,1705801841368,-500.59354776,0.00031793,2]
[312341705,1705801841377,-501.89684163,0.00031793,2]
[312341706,1705801841387,-213.08131176,0.00031793,2]
[312341707,1705801841396,-502.26075095,0.00031793,2]
[312341708,1705801841406,-500.73370433,0.00031793,2]
[312341709,1705801841416,-500.0,0.00031793,2]
[312341710,1705801841425,-500.08828349,0.00031793,2]
[312341711,1705801841435,-501.90194518,0.00031793,2]
[312341712,1705801841444,-500.0,0.00031793,2]
[312341713,1705801841454,-336.99499523,0.00031793,2]
[312341714,1705801841463,-532.50876823,0.00031793,2]
[312341715,1705801841473,-701.11,0.00031793,2]
[312341716,1705801841482,-502.39311687,0.00031793,2]
[312341717,1705801841491,-503.03597307,0.00031793,2]
[312341718,1705801841500,-500.0,0.00031793,2]
[312341719,1705801841509,-500.4458244,0.00031793,2]
[312341720,1705801841518,-500.0,0.00031793,2]
[312341721,1705801841528,-709.5,0.00031793,2]
[312341722,1705801841536,-500.0,0.00031793,2]
[312341723,1705801841545,-10018.48398771,0.00031793,10]
[312341724,1705801841554,-500.0,0.00031793,2]
[312341725,1705801841563,-1334.12,0.00031793,2]
[312341726,1705801841571,-500.0,0.00031793,2]
[312341727,1705801841580,-143.56443284,0.00031793,2]
[312341747,1705801843228,-828.02234072,0.0003178,3]
[312341748,1705801843239,-1154.07762926,0.0003178,3]
[312341749,1705801843254,-78.08003002,0.0003178,3]
[312341750,1705801843264,-500.0,0.0003179,2]
[312341751,1705801843273,-356.43556716,0.00031793,2]
[312341752,1705801843283,-315.99410268,0.00031793,2]
[312341779,1705802608853,1166.56,0.000222,10]
[312341849,1705803032310,-1571.13875008,0.00028502,2]
[312341851,1705803032319,-353.39092615,0.00028503,2]
[312341925,1705803038421,-166.96688877,0.00028501,2]
[312341926,1705803038432,-3476.8094143,0.00028501,2]
[312341927,1705803038441,-325.08563415,0.00028503,2]
[312341928,1705803038451,-199.21260294,0.00028503,2]
[312341929,1705803038464,-1740.68284208,0.00028503,2]
[312341930,1705803038474,-154.73694719,0.00028504,2]
[312341931,1705803038483,-237.57908484,0.00028504,2]
[312341932,1705803038503,-260.71552206,0.00028505,7]
[312341933,1705803038516,-154.73694719,0.00028505,4]
[312341934,1705803038529,-36958.2042176,0.00028506,2]
[312341935,1705803038540,-158.62360469,0.00028512,2]
[312341936,1705803038550,-270.03908649,0.00028513,2]
[312341937,1705803038559,-159.25703369,0.00028542,2]
[312341938,1705803038570,-155.36566299,0.00028542,2]
[312341939,1705803038579,-155.38505818,0.00028557,2]
[312341940,1705803038589,-2073.50516209,0.00028593,2]
[312341941,1705803038599,-561.53264515,0.00028595,2]
[312341942,1705803038608,-185.852208,0.00028767,2]
[312341943,1705803038617,-1880.36577671,0.00029,2]
[312341944,1705803038627,-155.0,0.00029136,2]
[312341945,1705803038636,-190.44826552,0.00029693,2]
[312341946,1705803038646,-688.33469937,0.0003,4]
[312341947,1705803038655,-169.83768546,0.00030036,2]
[312341948,1705803038665,-1797.21,0.00030126,3]
[312341949,1705803038674,-1497.68,0.00030126,3]
[312341950,1705803038683,-632.1,0.00030136,2]
[312341951,1705803038692,-500.0,0.00030136,2]
[312341952,1705803038702,-500.0,0.00030136,2]
[312341953,1705803038711,-503.49905887,0.00030136,2]
[312341954,1705803038720,-500.0,0.00030136,2]
[312341955,1705803038729,-500.0,0.00030136,2]
[312341956,1705803038739,-708.1,0.00030136,2]
[312341957,1705803038748,-500.0,0.00030136,2]
[312341958,1705803038758,-500.0,0.00030136,2]
[312341959,1705803038767,-169.69381302,0.00030136,2]
[312341960,1705803038776,-238.58559193,0.00030136,2]
[312341961,1705803038785,-500.0,0.00030136,2]
[312341962,1705803038794,-500.0,0.00030136,2]
[312341963,1705803038804,-500.0,0.00030136,2]
[312341964,1705803038813,-500.0,0.00030136,2]
[312341965,1705803038823,-500.0,0.00030136,2]
[312341966,1705803038832,-500.0,0.00030136,2]
[312341967,1705803038841,-500.0,0.00030136,2]
[312341968,1705803038851,-421.12321313,0.00030136,2]
[312341969,1705803038860,-500.0,0.00030136,2]
[312341970,1705803038869,-285.52354542,0.00030136,2]
[312341971,1705803038878,-500.22854352,0.00030136,2]
[312341972,1705803038888,-500.0,0.00030136,2]
[312341973,1705803038898,-500.0,0.00030136,2]
[312341974,1705803038907,-500.0,0.00030136,2]
[312341975,1705803038916,-500.0,0.00030136,2]
[312341976,1705803038925,-500.0,0.00030136,2]
[312341977,1705803038936,-506.57330405,0.00030136,2]
[312341978,1705803038945,-500.0,0.00030136,2]
[312341979,1705803038954,-544.28003768,0.00030136,2]
[312341980,1705803038964,-673.82,0.00030136,2]
[312341981,1705803038973,-500.0,0.00030136,2]
[312341982,1705803038983,-749.46,0.00030136,2]
[312341983,1705803038992,-500.0,0.00030136,2]
[312341984,1705803039001,-500.0,0.00030136,2]
[312341985,1705803039011,-500.0,0.00030136,2]
[312341986,1705803039021,-500.0,0.00030136,2]
[312341987,1705803039030,-672.49,0.00030136,2]
[312341988,1705803039040,-500.0,0.00030136,2]
[312341989,1705803039049,-500.0,0.00030136,2]
[312341990,1705803039059,-500.44934633,0.00030136,2]
[312341991,1705803039068,-658.91,0.00030136,2]
[312341992,1705803039078,-500.0,0.00030136,2]
[312341993,1705803039087,-1390.73,0.00030136,2]
[312341994,1705803039097,-500.0,0.00030136,2]
[312341995,1705803039106,-500.0,0.00030136,2]
[312341996,1705803039116,-500.0,0.00030136,2]
[312341997,1705803039124,-430.57721622,0.00030136,2]
[312341998,1705803039134,-500.0,0.00030136,2]
[312341999,1705803039143,-500.0,0.00030136,2]
[312342000,1705803039152,-500.0,0.00030136,2]
[312342001,1705803039161,-500.86453987,0.00030136,2]
[312342002,1705803039170,-874.22,0.00030136,2]
[312342003,1705803039179,-500.0,0.00030136,2]
[312342004,1705803039189,-500.0,0.00030136,2]
[312342005,1705803039198,-500.0,0.00030136,2]
[312342006,1705803039208,-500.0,0.00030136,2]
[312342007,1705803039217,-1563.51,0.00030136,2]
[312342008,1705803039227,-500.0,0.00030136,2]
[312342009,1705803039236,-500.0,0.00030136,2]
[312342010,1705803039245,-500.0,0.00030136,2]
[312342011,1705803039254,-503.06309626,0.00030136,2]
[312342012,1705803039264,-500.0,0.00030136,2]
[312342013,1705803039274,-500.0,0.00030136,2]
[312342014,1705803039286,-500.0,0.00030136,2]
[312342015,1705803039296,-538.69538608,0.00030136,2]
[312342016,1705803039305,-500.0,0.00030136,2]
[312342017,1705803039314,-501.56476935,0.00030136,2]
[312342018,1705803039325,-500.0,0.00030136,2]
[312342019,1705803039334,-500.0,0.00030136,2]
[312342020,1705803039343,-500.0,0.00030136,2]
[312342021,1705803039354,-500.0,0.00030136,2]
[312342022,1705803039363,-500.0,0.00030136,2]
[312342023,1705803039373,-500.29208664,0.00030136,2]
[312342024,1705803039382,-500.0,0.00030136,2]
[312342025,1705803039391,-501.44958437,0.00030136,2]
[312342026,1705803039401,-500.0,0.00030136,2]
[312342027,1705803039411,-500.0,0.00030136,2]
[312342028,1705803039420,-500.0,0.00030136,2]
[312342029,1705803039430,-514.19775012,0.00030136,2]
[312342030,1705803039439,-500.0,0.00030136,2]
[312342031,1705803039451,-243.153522,0.00030136,2]
[312342032,1705803039461,-500.0,0.00030136,2]
[312342033,1705803039471,-150.0,0.00030136,2]
[312342034,1705803039480,-500.0,0.00030136,2]
[312342035,1705803039490,-500.0,0.00030136,2]
[312342036,1705803039499,-500.0,0.00030136,2]
[312342037,1705803039508,-500.0,0.00030136,2]
[312342038,1705803039518,-500.0,0.00030136,2]
[312342039,1705803039527,-174.68987219,0.00030136,2]
[312342040,1705803039536,-1400.2,0.00030136,2]
[312342041,1705803039546,-411.14263646,0.00030136,2]
[312342042,1705803039555,-500.85348377,0.00030136,2]
[312342043,1705803039564,-678.84,0.00030136,2]
[312342044,1705803039573,-1503.59,0.00030136,2]
[312342045,1705803039582,-500.0,0.00030136,2]
[312342046,1705803039591,-762.78,0.00030136,2]
[312342047,1705803039600,-26092.37,0.00030136,2]
[312342048,1705803039610,-836.61,0.00030136,2]
[312342049,1705803039619,-2594.3,0.00030136,2]
[312342050,1705803039628,-500.0,0.00030136,2]
[312342051,1705803039637,-500.0,0.00030136,2]
[312342052,1705803039646,-781.6,0.00030136,2]
[312342053,1705803039656,-702.2,0.00030136,2]
[312342054,1705803039666,-500.0,0.00030136,2]
[312342055,1705803039675,-863.17,0.00030136,2]
[312342056,1705803039684,-716.83,0.00030136,2]
[312342057,1705803039694,-2029.69,0.00030136,2]
[312342058,1705803039703,-500.0,0.00030136,2]
[312342059,1705803039712,-500.0,0.00030136,2]
[312342060,1705803039721,-570.59,0.00030136,2]
[312342061,1705803039731,-500.0,0.00030136,2]
[312342062,1705803039740,-500.0,0.00030136,2]
[312342063,1705803039749,-501.49602513,0.00030136,2]
[312342064,1705803039759,-926.66,0.00030136,2]
[312342065,1705803039768,-500.0,0.00030136,2]
[312342066,1705803039777,-500.96958819,0.00030136,2]
[312342067,1705803039786,-5951.16,0.00030136,2]
[312342068,1705803039795,-500.0,0.00030136,2]
[312342069,1705803039805,-500.0,0.00030136,2]
[312342070,1705803039814,-500.0,0.00030136,2]
[312342071,1705803039824,-500.0,0.00030136,2]
[312342072,1705803039833,-500.0,0.00030136,2]
[312342073,1705803039842,-500.0,0.00030136,2]
[312342074,1705803039851,-500.0,0.00030136,2]
[312342075,1705803040001,-500.13735604,0.00030136,2]
[312342076,1705803040011,-500.0,0.00030136,2]
[312342077,1705803040020,-501.12985947,0.00030136,2]
[312342078,1705803040029,-2114.28,0.00030136,2]
[312342079,1705803040038,-393.78534988,0.00030136,2]
[312342080,1705803040047,-1232.1,0.00030136,2]
[312342081,1705803040056,-500.0,0.00030136,2]
[312342082,1705803040065,-500.0,0.00030136,2]
[312342083,1705803040074,-1121.48,0.00030136,2]
[312342084,1705803040084,-500.0,0.00030136,2]
[312342085,1705803040093,-501.1849965,0.00030136,2]
[312342086,1705803040103,-500.0,0.00030136,2]
[312342087,1705803040112,-1398.56,0.00030136,2]
[312342088,1705803040121,-234.30935535,0.00030136,2]
[312342089,1705803040131,-500.0,0.00030136,2]
[312342090,1705803040140,-1149.93,0.00030136,2]
[312342091,1705803040149,-500.0,0.00030136,2]
[312342092,1705803040158,-500.0,0.00030136,2]
[312342093,1705803040167,-501.87748932,0.00030136,2]
[312342094,1705803040176,-8246.77,0.00030136,2]
[312342095,1705803040186,-9372.39,0.00030136,2]
[312342096,1705803040195,-500.90581918,0.00030136,2]
[312342097,1705803040205,-500.0,0.00030136,2]
[312342098,1705803040214,-500.0,0.00030136,2]
[312342099,1705803040223,-500.0,0.00030136,2]
[312342100,1705803040233,-500.0,0.00030136,2]
[312342101,1705803040242,-3151.53,0.00030136,2]
[312342102,1705803040252,-5724.78,0.00030136,2]
[312342103,1705803040261,-2380.33,0.00030136,2]
[312342104,1705803040270,-500.0,0.00030136,2]
[312342105,1705803040284,-1153.44,0.00030136,2]
[312342106,1705803040293,-500.0,0.00030136,2]
[312342107,1705803040302,-500.0,0.00030136,2]
[312342108,1705803040312,-500.0,0.00030136,2]
[312342109,1705803040321,-500.44787412,0.00030136,2]
[312342110,1705803040331,-500.0,0.00030136,2]
[312342111,1705803040341,-500.0,0.00030136,2]
[312342112,1705803040350,-8182.12,0.00030136,2]
[312342114,1705803040361,-500.0,0.00030136,2]
[312342116,1705803040371,-500.0,0.00030136,2]
[312342117,1705803040380,-501.10340825,0.00030136,2]
[312342118,1705803040389,-15167.35,0.00030136,2]
[312342119,1705803040399,-500.76303151,0.00030136,2]
[312342120,1705803040408,-500.0,0.00030136,7]
[312342122,1705803040418,-500.0,0.00030136,2]
[312342123,1705803040427,-571.13,0.00030136,2]
[312342124,1705803040436,-500.3997051,0.00030136,2]
[312342125,1705803040446,-500.0,0.00030136,2]
[312342126,1705803040456,-500.0,0.00030136,2]
[312342127,1705803040465,-1592.35,0.00030136,2]
[312342128,1705803040475,-2199.84,0.00030136,2]
[312342130,1705803040484,-500.0,0.00030136,2]
[312342132,1705803040493,-300.24265173,0.00030136,2]
[312342133,1705803040502,-500.0,0.00030136,2]
[312342135,1705803040511,-702.64,0.00030136,2]
[312342136,1705803040520,-470.12320237,0.00030136,2]
[312342137,1705803040530,-500.0,0.00030136,2]
[312342138,1705803040539,-500.0,0.00030136,2]
[312342139,1705803040548,-500.0,0.00030136,2]
[312342140,1705803040557,-533.45302652,0.00030136,2]
[312342141,1705803040567,-500.0,0.00030136,2]
[312342142,1705803040577,-500.0,0.00030136,2]
[312342143,1705803040586,-533.55959299,0.00030136,2]
[312342144,1705803040595,-500.0,0.00030136,2]
[312342145,1705803040604,-500.0,0.00030136,2]
[312342146,1705803040613,-500.0,0.00030136,2]
[312342147,1705803040622,-500.0,0.00030136,2]
[312342148,1705803040632,-500.0,0.00030136,2]
[312342149,1705803040641,-500.0,0.00030136,2]
[312342150,1705803040651,-500.0,0.00030136,2]
[312342151,1705803040660,-1000.0,0.00030136,2]
[312342152,1705803040670,-624.0224972,0.00030136,2]
[312342153,1705803040681,-500.0,0.00030136,2]
[312342154,1705803040691,-514.20659959,0.00030136,2]
[312342155,1705803040702,-1289.11,0.00030136,2]
[312342156,1705803040712,-500.0,0.00030136,2]
[312342157,1705803040724,-501.08446367,0.00030136,2]
[312342158,1705803040734,-500.0,0.00030136,2]
[312342159,1705803040744,-501.550524,0.00030136,2]
[312342160,1705803040755,-847.69,0.00030136,2]
[312342161,1705803040766,-500.0,0.00030136,2]
[312342162,1705803040775,-500.0,0.00030136,2]
[312342163,1705803040785,-500.0,0.00030136,2]
[312342164,1705803040794,-500.0,0.00030136,2]
[312342165,1705803040803,-500.0,0.00030136,2]
[312342166,1705803040811,-349.89304428,0.00030136,2]
[312342167,1705803040820,-500.0,0.00030136,2]
[312342168,1705803040830,-500.0,0.00030136,2]
[312342169,1705803040839,-1857.94,0.00030136,2]
[312342170,1705803040848,-500.0,0.00030136,2]
[312342171,1705803040858,-500.0,0.00030136,2]
[312342172,1705803040868,-500.0,0.00030136,2]
[312342173,1705803040880,-1535.99,0.00030136,2]
[312342174,1705803040889,-500.0,0.00030136,2]
[312342175,1705803040900,-500.0,0.00030136,2]
[312342176,1705803040909,-500.0,0.00030136,2]
[312342177,1705803040919,-500.0,0.00030136,2]
[312342178,1705803040928,-500.0,0.00030136,2]
[312342179,1705803040937,-500.0,0.00030136,2]
[312342180,1705803040946,-352.99857354,0.00030136,2]
[312342181,1705803040955,-500.0,0.00030136,2]
[312342182,1705803040965,-500.0,0.00030136,2]
[312342183,1705803040976,-443.47998766,0.00030136,2]
[312342184,1705803040985,-246.16646405,0.00030136,2]
[312342185,1705803040995,-500.0,0.00030136,2]
[312342186,1705803041005,-825.54,0.00030136,2]
[312342187,1705803041014,-1086.01,0.00030136,2]
[312342188,1705803041024,-500.0,0.00030136,2]
[312342189,1705803041034,-405.41592014,0.00030137,2]
[312342190,1705803041043,-500.0,0.00030409,2]
[312342191,1705803041053,-480.02326092,0.00030409,2]
[312342192,1705803041062,-471.05861413,0.00030409,2]
[312342193,1705803041071,-500.0,0.00030409,2]
[312342194,1705803041081,-271.3582959,0.00030409,2]
[312342195,1705803041092,-500.0,0.00030409,2]
[312342196,1705803041101,-614.8162526,0.00030409,2]
[312342197,1705803041111,-500.0,0.00030409,2]
[312342198,1705803041120,-315.01664004,0.00030409,2]
[312342199,1705803041130,-500.0,0.00030409,2]
[312342200,1705803041139,-500.0,0.00030409,2]
[312342201,1705803041150,-500.0,0.00030409,2]
[312342202,1705803041159,-500.0,0.00030409,2]
[312342203,1705803041169,-500.0,0.00030409,2]
[312342204,1705803041178,-391.90982317,0.0003041,2]
[312342205,1705803041187,-632.1,0.0003041,2]
[312342206,1705803041196,-500.0,0.0003041,2]
[312342207,1705803041205,-500.0,0.0003041,2]
[312342208,1705803041215,-500.0,0.0003041,2]
[312342209,1705803041227,-708.1,0.0003041,2]
[312342211,1705803041237,-500.0,0.0003041,2]
[312342212,1705803041247,-500.0,0.0003041,2]
[312342213,1705803041256,-500.0,0.0003041,2]
[312342214,1705803041266,-500.0,0.0003041,2]
[312342215,1705803041276,-500.0,0.0003041,2]